fUSD/lending_fUSD_20250617
["ID","MTS","AMOUNT","RATE_DAILY","PERIOD"]
[366242738,1750158635025,-191.66407104,0.00016279,2]
[366242739,1750158635035,-186.63128007,0.00016279,2]
[366242740,1750158635044,-500.0,0.00016279,2]
[366242741,1750158635054,-500.0,0.00016279,2]
[366242742,1750158635064,-510.42195905,0.00016279,2]
[366242743,1750158635073,-272.20866455,0.00016279,2]
[366242744,1750158635083,-247.14895411,0.00016279,2]
[366242747,1750158637621,-884.0,0.00016262,2]
[366242748,1750158637632,-252.85104589,0.00016279,2]
[366242749,1750158637643,-500.0,0.00016279,2]
[366242750,1750158637653,-458.38710931,0.00016279,2]
[366242751,1750158637662,-500.0,0.00016279,2]
[366242752,1750158637672,-500.0,0.00016279,2]
[366242753,1750158637682,-500.0,0.00016279,2]
[366242754,1750158637692,-202.68385262,0.00016279,2]
[366242755,1750158637702,-150.0,0.00016279,2]
[366242756,1750158637712,-150.0,0.00016279,2]
[366242757,1750158637721,-150.0,0.00016279,2]
[366242758,1750158637731,-295.1907986,0.00016279,2]
[366242759,1750158637742,-158.63247591,0.00016279,2]
[366242760,1750158637752,-150.0,0.00016279,2]
[366242761,1750158637762,-278.28714927,0.00016279,2]
[366242762,1750158637772,-459.94528419,0.0001628,2]
[366242763,1750158637788,-889.05553759,0.0001628,2]
[366242764,1750158637799,-779.79811136,0.0001628,2]
[366242765,1750158637822,-1092.6,0.0001628,2]
[366242766,1750158637834,-904.78563712,0.0001628,2]
[366242767,1750158637859,-321.61458949,0.0001628,2]
[366242768,1750158637870,-3912.2173612,0.0001628,2]
[366242769,1750158637891,-2825.6909516,0.0001628,2]
[366242833,1750158640155,-11334.5925617,0.0001628,2]
[366242834,1750158640168,-65895.72087609,0.0001628,2]
[366242841,1750158642686,-11929.34750335,0.0001628,2]
[366242845,1750158642843,-2627.76494519,0.0001628,2]
[366242846,1750158642856,-10593.0,0.0001628,2]
[366242847,1750158642868,-317.68656233,0.0001628,2]
[366242848,1750158642898,-3487.243837,0.0001628,2]
[366242849,1750158642910,-11274.21261662,0.0001628,2]
[366242850,1750158642922,-2610.46582762,0.0001628,2]
[366242851,1750158642951,-551.44428636,0.0001628,2]
[366242858,1750158645674,-16522.53960692,0.0001628,2]
[366242859,1750158645687,-374.26718331,0.0001628,2]
[366242860,1750158645782,-6014.23872,0.0001628,2]
[366242861,1750158645962,-34337.08839748,0.0001628,2]
[366242877,1750158646504,-274141.97756206,0.0001628,2]
[366242878,1750158646514,-1000.0,0.0001628,2]
[366242879,1750158646524,-1000.0,0.0001628,2]
[366242880,1750158646533,-1000.0,0.0001628,2]
[366242881,1750158646543,-1000.0,0.0001628,2]
[366242882,1750158646552,-1000.0,0.0001628,2]
[366242883,1750158646562,-700.0,0.0001628,2]
[366242884,1750158646571,-200.0,0.0001628,2]
[366242885,1750158646581,-1112.055,0.0001628,2]
[366242886,1750158646590,-166.0,0.0001628,2]
[366242887,1750158646599,-166.0,0.0001628,2]
[366242888,1750158646608,-388.98386906,0.0001628,2]
[366242889,1750158646618,-151.0,0.0001628,2]
[366242890,1750158646627,-200.0,0.0001628,2]
[366242891,1750158646637,-155.84758533,0.00016283,2]
[366242892,1750158646646,-200.0,0.0001629,2]
[366242893,1750158646655,-246.92190402,0.0001629,2]
[366242894,1750158646665,-200.0,0.0001629,2]
[366242895,1750158646674,-150.0,0.0001629,2]
[366242896,1750158646683,-250.0,0.0001629,2]
[366242897,1750158646692,-500.0,0.0001629,2]
[366242898,1750158646701,-263.35286667,0.00016295,2]
[366242899,1750158646711,-1000.0,0.000163,2]
[366242900,1750158646720,-200.0,0.00016301,2]
[366242901,1750158646729,-200.0,0.00016302,2]
[366242902,1750158646739,-168.0,0.00016304,2]
[366242903,1750158646748,-500.0,0.00016306,2]
[366242904,1750158646757,-150.0,0.00016306,2]
[366242905,1750158646767,-200.0,0.00016306,2]
[366242906,1750158646776,-150.0,0.00016306,2]
[366242907,1750158646786,-200.0,0.00016307,2]
[366242908,1750158646795,-200.0,0.00016308,2]
[366242909,1750158646804,-200.0,0.0001631,2]
[366242910,1750158646814,-211.0,0.0001631,2]
[366242911,1750158646823,-1680.0,0.00016313,2]
[366242912,1750158646833,-200.0,0.00016316,2]
[366242913,1750158646842,-263.35286667,0.00016316,2]
[366242914,1750158646851,-150.0,0.00016317,2]
[366242915,1750158646861,-500.0,0.00016317,2]
[366242916,1750158646871,-200.0,0.00016318,2]
[366242917,1750158646881,-207.83846173,0.00016324,2]
[366242918,1750158646891,-150.0,0.00016329,2]
[366242919,1750158646902,-512.12536234,0.00016334,2]
[366242920,1750158646911,-150.0,0.00016334,2]
[366242921,1750158646921,-250.0,0.00016334,2]
[366242922,1750158646930,-11677.6657671,0.00016337,2]
[366242923,1750158646940,-9802.16925531,0.00016337,2]
[366242924,1750158646950,-168.136497,0.00016338,2]
[366242925,1750158646960,-207.83846173,0.00016339,2]
[366242926,1750158646970,-200.0,0.00016339,2]
[366242927,1750158646980,-195.86415488,0.0001634,2]
[366242928,1750158646990,-155.05381884,0.00016341,2]
[366242929,1750158647000,-200.0,0.00016344,2]
[366242930,1750158647009,-200.0,0.00016345,2]
[366242931,1750158647019,-150.0,0.00016345,2]
[366242932,1750158647029,-500.0,0.00016345,2]
[366242933,1750158647038,-278.28714927,0.00016348,2]
[366242934,1750158647048,-263.35286667,0.00016359,2]
[366242935,1750158647058,-150.0,0.00016359,2]
[366242936,1750158647068,-200.0,0.00016362,2]
[366242937,1750158647078,-263.35286667,0.00016362,2]
[366242938,1750158647087,-200.0,0.00016366,2]
[366242939,1750158647098,-250.0,0.00016366,2]
[366242940,1750158647108,-200.0,0.00016368,2]
[366242941,1750158647117,-263.35286667,0.00016368,2]
[366242942,1750158647126,-200.0,0.00016369,2]
[366242943,1750158647137,-250.0,0.00016372,2]
[366242944,1750158647146,-500.0,0.00016372,2]
[366242945,1750158647155,-207.83846173,0.00016374,2]
[366242946,1750158647165,-200.0,0.00016374,2]
[366242948,1750158647175,-207.83846173,0.00016374,2]
[366242949,1750158647185,-207.83846173,0.00016377,2]
[366242950,1750158647195,-1471.0,0.00016377,2]
[366242951,1750158647205,-183.79,0.00016377,2]
[366242952,1750158647215,-19675.96658336,0.00016377,2]
[366242953,1750158647224,-8084.46531555,0.00016378,2]
[366242954,1750158647234,-266499.34205061,0.00016378,2]
[366242958,1750158761715,201.0,0.00013441,2]
[366243040,1750159350323,162.63,0.00011508,2]
[366243063,1750159690879,916.87,0.00013617,2]
[366243064,1750159692077,200.0,0.00013445,2]
[366243069,1750159723254,200.0,0.0001353,7]
[366243070,1750159725465,250.0,0.0001353,2]
[366243082,1750159794208,159.46,0.0001353,2]
[366243089,1750159831803,-381.4,0.00013699,2]
[366243090,1750159831813,-889.644,0.0001372,2]
[366243091,1750159831823,-186.42,0.00013779,2]
[366243092,1750159831832,-200.0,0.00013951,2]
[366243093,1750159831841,-1200.0,0.0001397,2]
[366243094,1750159831851,-2163.58546845,0.00013971,2]
[366243095,1750159831863,-753.35252492,0.00013971,2]
[366243096,1750159831885,-28964.86501093,0.00013971,2]
[366243097,1750159831895,-558.81008304,0.00013971,2]
[366243098,1750159831905,-500.0,0.00013973,2]
[366243099,1750159831916,-500.0,0.00013973,2]
[366243100,1750159831926,-500.0,0.00013973,2]
[366243101,1750159831937,-500.0,0.00013973,2]
[366243102,1750159831947,-500.0,0.00013973,2]
[366243103,1750159831959,-500.0,0.00013973,2]
[366243104,1750159831970,-500.0,0.00013973,2]
[366243105,1750159831980,-151.45,0.0001399,2]
[366243106,1750159831990,-305.62967044,0.00013999,2]
[366243107,1750159832000,-500.0,0.00013999,2]
[366243108,1750159832010,-500.0,0.00013999,2]
[366243109,1750159832021,-186.36612426,0.00013999,2]
[366243110,1750159832032,-500.0,0.00013999,2]
[366243111,1750159832042,-344.52171569,0.00013999,2]
[366243112,1750159832053,-611.4170417,0.00013999,2]
[366243113,1750159832062,-500.0,0.00013999,2]
[366243114,1750159832074,-500.0,0.00013999,2]
[366243115,1750159832085,-270.14201238,0.00013999,2]
[366243116,1750159832096,-500.0,0.00013999,2]
[366243117,1750159832107,-500.0,0.00013999,2]
[366243118,1750159832117,-500.0,0.00013999,2]
[366243119,1750159832129,-500.0,0.00013999,2]
[366243120,1750159832139,-392.55976668,0.00013999,2]
[366243121,1750159832150,-530.0,0.00013999,2]
[366243122,1750159832160,-500.0,0.00013999,2]
[366243123,1750159832171,-500.0,0.00013999,2]
[366243124,1750159832181,-431.27811138,0.00013999,2]
[366243125,1750159832191,-500.0,0.00013999,2]
[366243126,1750159832201,-500.0,0.00013999,2]
[366243127,1750159832212,-350.0,0.00013999,2]
[366243128,1750159832222,-500.0,0.00013999,2]
[366243129,1750159832233,-300.0,0.00013999,2]
[366243130,1750159832243,-500.0,0.00013999,2]
[366243131,1750159832254,-500.0,0.00013999,2]
[366243132,1750159832264,-500.0,0.00013999,2]
[366243133,1750159832275,-500.0,0.00013999,2]
[366243134,1750159832285,-334.12248178,0.00013999,2]
[366243136,1750159832296,-224146.7966882,0.00014,2]
[366243139,1750159832311,-281181.05124461,0.00014,2]
[366243141,1750159832323,-559.62288318,0.00014,2]
[366243143,1750159832350,-2469.44074735,0.00014,2]
[366243144,1750159832363,-25519.64078545,0.00014,2]
[366243145,1750159832407,-511.438934,0.00014,2]
[366243146,1750159836822,-150.0,0.00013751,2]
[366243147,1750159836832,-3500.89198,0.00014,2]
[366243148,1750159836877,-661.3481875,0.00014,2]
[366243149,1750159836889,-3430.86173256,0.00014,2]
[366243150,1750159836984,-387.13222533,0.00014,2]
[366243187,1750159837778,-2523.8152488,0.00014,2]
[366243188,1750159837887,-854.00661147,0.00014,2]
[366243189,1750159837939,-10569.0,0.00014,2]
[366243190,1750159837952,-798.93,0.00014,2]
[366243191,1750159838046,-115844.24407603,0.00014,2]
[366243192,1750159838058,-10962.85933374,0.00014,2]
[366243193,1750159838072,-965.7213482,0.00014,2]
[366243194,1750159838084,-691.35916066,0.00014,2]
[366243195,1750159838096,-1038.927222,0.00014,2]
[366243196,1750159838112,-1315.92,0.00014,2]
[366243292,1750159839895,-22529.24474669,0.00014,2]
[366243293,1750159839907,-43921.98830996,0.00014,2]
[366243294,1750159840002,-1495.57984918,0.00014,2]
[366243295,1750159840014,-11964.10914325,0.00014,2]
[366243296,1750159840109,-17945.51543581,0.00014,2]
[366243297,1750159842644,-7641.5,0.00014,2]
[366243299,1750159842860,-42215.79476838,0.00014,2]
[366243300,1750159842915,-1084.19050402,0.00014,2]
[366243302,1750159842969,-17848.63076161,0.00014,2]
[366243303,1750159842980,-991.76442867,0.00014,2]
[366243304,1750159843142,-566.20079708,0.00014,2]
[366243305,1750159843162,-2459.79939969,0.00014,2]
[366243310,1750159845931,-819.16654139,0.00014,2]
[366243311,1750159845944,-541.91421838,0.00014,2]
[366243320,1750159961466,201.0,0.00013445,2]
[366243328,1750160052448,200.0,0.00013457,2]
[366243329,1750160059128,166.10226921,0.00013661,2]
[366243330,1750160081668,2859.06226921,0.00013618,2]
[366243331,1750160081690,2859.06226921,0.00013618,2]
[366243332,1750160081712,2859.06226921,0.00013618,2]
[366243333,1750160081735,2859.06226921,0.00013618,2]
[366243334,1750160081757,2859.06226921,0.00013618,2]
[366243335,1750160081778,2859.06226921,0.00013618,2]
[366243340,1750160133628,162.25,0.00013342,2]
[366243341,1750160133841,162.25,0.00013353,2]
[366243342,1750160134071,162.25,0.00013364,2]
[366243343,1750160134276,162.25,0.00013375,2]
[366243344,1750160134688,162.25,0.00013386,2]
[366243345,1750160134908,162.25,0.00013397,2]
[366243346,1750160135106,162.25,0.00013408,2]
[366243347,1750160135552,956.61264441,0.0001356,2]
[366243351,1750160198926,200.0,0.00013371,2]
[366243354,1750160249071,566.6996248,0.00013406,2]
[366243355,1750160249096,98.4503752,0.00013406,2]
[366243359,1750160319301,2760.61189401,0.00013272,2]
[366243360,1750160319322,2859.06226921,0.00013272,2]
[366243375,1750160773197,-174.36613638,0.00011974,2]
[366243385,1750160930189,-25.63386362,0.00011974,2]
[366243386,1750160930214,-126.36613638,0.0001241,2]
[366243387,1750160933552,-123.63386362,0.0001241,2]
[366243388,1750160933596,-200.0,0.00012508,2]
[366243393,1750161032215,-3119.75,0.00012662,2]
[366243394,1750161032225,-880.29,0.00012769,2]
[366243395,1750161032236,-638.3,0.00012879,2]
[366243396,1750161032247,-250.0,0.00012897,2]
[366243397,1750161032261,-111.6641753,0.00012915,2]
[366243399,1750161032278,-141.5958247,0.00012915,2]
[366243401,1750161032288,-161.37,0.00012925,2]
[366243402,1750161032299,-300.0,0.00012939,2]
[366243403,1750161032309,-1200.0,0.00012939,2]
[366243404,1750161032320,-64810.60063253,0.0001294,2]
[366243503,1750161037961,-500.0,0.00012939,2]
[366243504,1750161037971,-170.0,0.00012939,2]
[366243505,1750161037981,-439.11686725,0.0001294,2]
[366243506,1750161037992,-2757.1847512,0.0001294,2]
[366243507,1750161038006,-1240.07,0.0001294,2]
[366243508,1750161038066,-571.06832393,0.0001294,2]
[366243509,1750161038125,-1348.52228421,0.0001294,2]
[366243510,1750161038137,-421.13683,0.0001294,2]
[366243511,1750161038149,-568.07200242,0.0001294,2]
[366243512,1750161038161,-654.9199999,0.0001294,2]
[366243513,1750161038178,-141895.13830856,0.0001294,2]
[366243514,1750161038188,-1000.0,0.0001294,2]
[366243515,1750161038198,-11147.01,0.00012979,2]
[366243516,1750161038209,-200.0,0.00013041,3]
[366243517,1750161038219,-250.0,0.00013051,2]
[366243518,1750161038229,-200.0,0.00013081,7]
[366243519,1750161038239,-587.4,0.00013088,2]
[366243520,1750161038249,-1354.62,0.00013105,2]
[366243521,1750161038264,-2017.92,0.00013215,2]
[366243522,1750161038274,-250.18,0.00013267,2]
[366243523,1750161038285,-1147.39583678,0.00013272,2]
[366243524,1750161038295,-200.0,0.00013575,3]
[366243525,1750161038305,-300.0,0.00013616,2]
[366243526,1750161038315,-300.0,0.00013616,2]
[366243527,1750161038325,-300.0,0.00013617,2]
[366243528,1750161038335,-6745.62638474,0.00013618,2]
[366243529,1750161038346,-300.0,0.00013639,2]
[366243530,1750161038356,-362.33,0.00013699,2]
[366243531,1750161038366,-666.0,0.00013699,2]
[366243532,1750161038377,-1500.0,0.00013699,2]
[366243533,1750161038387,-200.0,0.00013699,2]
[366243534,1750161038397,-711.715,0.00013899,2]
[366243535,1750161038406,-150.0,0.00013899,2]
[366243536,1750161038417,-30250.62530686,0.000139,2]
[366243537,1750161038427,-377.46886391,0.000139,2]
[366243538,1750161038437,-239.18473478,0.000139,2]
[366243540,1750161038448,-200.0,0.000139,5]
[366243542,1750161038458,-504.24567503,0.00013962,2]
[366243544,1750161038468,-151.0,0.00013992,2]
[366243546,1750161038478,-151.0,0.00013992,2]
[366243548,1750161038488,-151.0,0.00013992,2]
[366243550,1750161038497,-151.0,0.00013992,2]
[366243551,1750161038508,-151.0,0.00013992,2]
[366243552,1750161038518,-285.80488263,0.00013992,2]
[366243553,1750161038529,-285.79441205,0.00013999,2]
[366243554,1750161038539,-176.14,0.00013999,2]
[366243555,1750161038549,-179207.06428087,0.00014,2]
[366243556,1750161038559,-608924.4975,0.00014,2]
[366243557,1750161038569,-500.093,0.00014,2]
[366243558,1750161038579,-200.0,0.00014,2]
[366243559,1750161038589,-200.0,0.00014,2]
[366243560,1750161038599,-200.0,0.00014108,4]
[366243561,1750161038609,-197.28282684,0.00014113,2]
[366243562,1750161038620,-367.513972,0.00014113,2]
[366243563,1750161038630,-200.0,0.0001414,2]
[366243564,1750161038639,-250.0,0.00014167,2]
[366243565,1750161038649,-420.0,0.00014191,2]
[366243566,1750161038659,-30250.62530678,0.00014232,2]
[366243567,1750161038669,-1680.0,0.00014233,2]
[366243568,1750161038679,-377.46886385,0.00014233,2]
[366243569,1750161038689,-250.0,0.00014271,2]
[366243570,1750161038698,-200.0,0.00014281,2]
[366243571,1750161038708,-239.18473471,0.00014329,2]
[366243572,1750161038718,-1000.0,0.00014558,2]
[366243573,1750161038728,-30250.62530678,0.00014564,2]
[366243574,1750161038737,-377.46886385,0.00014567,2]
[366243575,1750161038748,-197.28282682,0.00014578,2]
[366243576,1750161038757,-200.0,0.00014642,5]
[366243577,1750161038767,-239.18473471,0.00014757,2]
[366243578,1750161038777,-150.0,0.0001477,2]
[366243579,1750161038787,-150.0,0.0001477,2]
[366243580,1750161038797,-150.0,0.0001477,2]
[366243581,1750161038806,-150.0,0.0001477,2]
[366243582,1750161038816,-150.0,0.0001477,2]
[366243583,1750161038826,-150.0,0.0001477,2]
[366243584,1750161038836,-367.513972,0.0001481,2]
[366243585,1750161038846,-159.46,0.00014883,2]
[366243586,1750161038855,-166.32792695,0.00014886,2]
[366243587,1750161038864,-30250.62530678,0.00014896,2]
[366243588,1750161038874,-377.46886385,0.000149,2]
[366243589,1750161038884,-300.0,0.00014923,2]
[366243590,1750161038894,-300.0,0.0001498,2]
[366243591,1750161038904,-300.0,0.0001498,2]
[366243592,1750161038914,-250.0,0.00015,2]
[366243593,1750161038924,-157.27,0.00015,2]
[366243594,1750161038934,-400.0,0.00015,2]
[366243595,1750161038944,-499.17355289,0.00015,2]
[366243596,1750161039226,-300.0,0.00015,2]
[366243597,1750161039245,-150.0,0.00015025,2]
[366243598,1750161039259,-197.28282682,0.00015042,2]
[366243599,1750161039269,-665.15,0.00015082,2]
[366243600,1750161039279,-300.08555,0.00015087,2]
[366243601,1750161039288,-151.0,0.00015087,2]
[366243602,1750161039298,-151.0,0.00015087,2]
[366243603,1750161039308,-151.0,0.00015087,2]
[366243604,1750161039317,-192.336935,0.00015087,2]
[366243605,1750161039327,-192.336935,0.00015087,2]
[366243606,1750161039337,-151.0,0.00015087,2]
[366243607,1750161039347,-152.18439,0.00015087,2]
[366243608,1750161039357,-151.0,0.00015087,2]
[366243609,1750161039367,-151.0,0.00015087,2]
[366243610,1750161039377,-221.795012,0.00015087,2]
[366243611,1750161039387,-221.795012,0.00015087,2]
[366243612,1750161039397,-200.0,0.00015176,5]
[366243613,1750161039406,-239.18473471,0.00015186,2]
[366243614,1750161039416,-492.0,0.00015202,2]
[366243615,1750161039426,-30250.62530678,0.00015228,2]
[366243616,1750161039436,-164.699514,0.00015228,2]
[366243617,1750161039445,-151.0,0.00015228,2]
[366243618,1750161039455,-156.703589,0.00015228,2]
[366243619,1750161039466,-151.0,0.00015228,2]
[366243620,1750161039476,-151.0,0.00015228,2]
[366243621,1750161039486,-151.333948,0.00015228,2]
[366243622,1750161039495,-151.0,0.00015228,2]
[366243623,1750161039505,-377.46886385,0.00015233,2]
[366243624,1750161039515,-151.0,0.00015235,2]
[366243625,1750161039525,-151.0,0.00015235,2]
[366243626,1750161039535,-218.603652,0.00015235,2]
[366243627,1750161039545,-151.0,0.00015235,2]
[366243628,1750161039555,-151.0,0.00015235,2]
[366243629,1750161039566,-151.550801,0.00015235,2]
[366243630,1750161039576,-151.0,0.00015235,2]
[366243631,1750161039586,-151.0,0.00015235,2]
[366243632,1750161039596,-151.0,0.00015235,2]
[366243633,1750161039605,-151.0,0.00015235,2]
[366243634,1750161039615,-151.0,0.00015235,2]
[366243635,1750161039625,-151.0,0.00015235,2]
[366243636,1750161039635,-151.0,0.00015235,2]
[366243637,1750161039644,-151.0,0.00015235,2]
[366243638,1750161039654,-151.0,0.00015235,2]
[366243639,1750161039664,-151.0,0.00015235,2]
[366243640,1750161039674,-151.0,0.00015235,2]
[366243641,1750161039684,-151.0,0.00015235,2]
[366243642,1750161039695,-154.008629,0.00015235,2]
[366243643,1750161039706,-151.0,0.00015235,2]
[366243644,1750161039715,-151.0,0.00015235,2]
[366243645,1750161039724,-151.0,0.00015235,2]
[366243646,1750161039735,-151.0,0.00015235,2]
[366243647,1750161039744,-151.0,0.00015235,2]
[366243648,1750161039754,-151.0,0.00015235,2]
[366243649,1750161039764,-217.263328,0.00015235,2]
[366243650,1750161039774,-152.107399,0.00015235,2]
[366243651,1750161039783,-151.0,0.00015235,2]
[366243652,1750161039793,-258.394561,0.00015235,2]
[366243653,1750161039804,-280.209386,0.00015235,2]
[366243654,1750161039814,-151.703014,0.00015246,2]
[366243655,1750161039823,-151.0,0.00015246,2]
[366243656,1750161039833,-151.0,0.00015246,2]
[366243657,1750161039843,-151.0,0.00015246,2]
[366243658,1750161039854,-151.0,0.00015246,2]
[366243659,1750161039864,-151.0,0.00015246,2]
[366243660,1750161039873,-293.581204,0.00015246,2]
[366243661,1750161039883,-151.0,0.00015246,2]
[366243662,1750161039893,-151.0,0.00015246,2]
[366243663,1750161039903,-151.0,0.00015246,2]
[366243664,1750161039912,-151.0,0.00015246,2]
[366243665,1750161039922,-151.0,0.00015246,2]
[366243667,1750161039932,-151.0,0.00015246,2]
[366243668,1750161039942,-151.0,0.00015246,2]
[366243669,1750161039953,-151.0,0.00015246,2]
[366243670,1750161039963,-151.0,0.00015246,2]
[366243671,1750161039972,-151.0,0.00015246,2]
[366243672,1750161039981,-151.0,0.00015246,2]
[366243673,1750161039991,-151.0,0.00015246,2]
[366243674,1750161040000,-151.0,0.00015246,2]
[366243675,1750161040011,-224.278596,0.00015246,2]
[366243676,1750161040022,-836.5,0.0001526,2]
[366243677,1750161040032,-168.0,0.00015318,2]
[366243678,1750161040042,-176.14,0.00015369,2]
[366243679,1750161040053,-1330.0,0.00015453,2]
[366243680,1750161040063,-167.85,0.00015454,2]
[366243681,1750161040073,-151.0,0.00015481,2]
[366243682,1750161040082,-1957.856,0.00015481,2]
[366243683,1750161040091,-207.4,0.00015481,2]
[366243684,1750161040101,-235.493746,0.00015481,2]
[366243685,1750161040112,-235.493746,0.00015481,2]
[366243686,1750161040123,-197.28282682,0.00015507,2]
[366243687,1750161040133,-367.513972,0.00015507,2]
[366243688,1750161040143,-2030.296672,0.00015536,2]
[366243689,1750161040153,-151.0,0.00015548,2]
[366243690,1750161040163,-151.0,0.00015548,2]
[366243691,1750161040172,-151.0,0.00015548,2]
[366243692,1750161040182,-151.0,0.00015548,2]
[366243693,1750161040191,-300.0,0.00015548,2]
[366243694,1750161040201,-151.0,0.0001556,2]
[366243695,1750161040210,-151.0,0.0001556,2]
[366243696,1750161040220,-151.0,0.0001556,2]
[366243697,1750161040230,-314.588872,0.0001556,2]
[366243698,1750161040239,-314.588872,0.0001556,2]
[366243699,1750161040249,-11503.18386719,0.0001556,2]
[366243700,1750161040263,-30250.62530678,0.0001556,2]
[366243701,1750161040273,-587.0,0.00015564,2]
[366243702,1750161040283,-151.0,0.00015566,2]
[366243703,1750161040292,-151.0,0.00015566,2]
[366243704,1750161040304,-377.46886385,0.00015567,2]
[366243705,1750161040315,-2105.41764886,0.00015591,2]
[366243706,1750161040325,-239.18473471,0.00015614,2]
[366243707,1750161040335,-1058.0,0.00015644,2]
[366243708,1750161040345,-151.0,0.00015644,2]
[366243709,1750161040355,-151.0,0.00015644,2]
[366243710,1750161040365,-2183.31810187,0.00015646,2]
[366243711,1750161040375,-2351.0,0.00015657,2]
[366243712,1750161040385,-151.413848,0.00015678,2]
[366243713,1750161040395,-151.0,0.00015678,2]
[366243714,1750161040404,-151.0,0.00015678,2]
[366243715,1750161040414,-151.0,0.00015678,2]
[366243716,1750161040423,-151.0,0.00015678,2]
[366243717,1750161040433,-151.0,0.00015678,2]
[366243718,1750161040442,-151.0,0.00015678,2]
[366243719,1750161040452,-521.68933087,0.000157,2]
[366243720,1750161040462,-521.68933069,0.000157,2]
[366243721,1750161040472,-521.68933069,0.000157,2]
[366243722,1750161040481,-521.68933069,0.000157,2]
[366243723,1750161040491,-521.68933069,0.000157,2]
[366243724,1750161040501,-521.68933069,0.000157,2]
[366243725,1750161040511,-521.68933069,0.000157,2]
[366243726,1750161040521,-521.68933069,0.000157,2]
[366243727,1750161040530,-202.22993843,0.000157,2]
[366243729,1750161040575,-319.45939226,0.000157,2]
[366243731,1750161040584,-521.68933069,0.000157,2]
[366243732,1750161040595,-277.66015601,0.000157,2]
[366243733,1750161041127,-500.0,0.000149,5]
[366243734,1750161041138,-969.988693,0.00015228,2]
[366243735,1750161041147,-244.02917468,0.000157,2]
[366243736,1750161041157,-521.68933069,0.000157,2]
[366243737,1750161041167,-501.08137093,0.000157,2]
[366243738,1750161041220,-20.60795976,0.000157,2]
[366243739,1750161041230,-521.68933069,0.000157,2]
[366243740,1750161041240,-521.68933069,0.000157,2]
[366243741,1750161041251,-521.68933069,0.000157,2]
[366243742,1750161041269,-521.68933069,0.000157,2]
[366243743,1750161041279,-521.68933069,0.000157,2]
[366243744,1750161041289,-2264.10087164,0.00015701,2]
[366243745,1750161041298,-200.0,0.00015709,6]
[366243746,1750161041309,-458.17531515,0.00015756,2]
[366243747,1750161041320,-1889.69728874,0.00015756,2]
[366243748,1750161041330,-521.68933069,0.00015762,2]
[366243749,1750161041340,-1001.0092,0.00015799,2]
[366243750,1750161041351,-2434.74389024,0.00015811,2]
[366243751,1750161041361,-521.68933069,0.00015866,2]
[366243752,1750161041372,-2524.82941417,0.00015866,2]
[366243753,1750161041382,-151.0,0.00015878,2]
[366243754,1750161041392,-151.0,0.00015878,2]
[366243755,1750161041402,-151.0,0.00015878,2]
[366243756,1750161041412,-261.196082,0.00015878,2]
[366243757,1750161041422,-301.335744,0.00015878,2]
[366243758,1750161041432,-301.335744,0.00015878,2]
[366243759,1750161041442,-299.71475,0.00015878,2]
[366243760,1750161041451,-299.71475,0.00015878,2]
[366243761,1750161041460,-4324.31822519,0.0001589,2]
[366243762,1750161041472,-536.36503216,0.0001589,2]
[366243763,1750161041511,-1139.31674265,0.0001589,2]
[366243764,1750161041521,-151.0,0.0001589,2]
[366243765,1750161041531,-151.0,0.0001589,2]